Cogmind - Beta 13 @@@ ROGUE MODE // 2024.04.11 @ 09:16:15 Player: Mantreise Result: Destroyed by G-47 Trooper with Particle Gun Performance ------------- Evolutions (2) 1000 Regions Visited (3) 600 Robots Destroyed (50) 250 Value Destroyed (1353) 1353 Prototype IDs (1) 20 Alien Tech Used (0) 0 Bonus (77) 77 TOTAL SCORE: 3300 Bonus ------- High Alert Combat Kills 77 Cogmind --------- Core Integrity 0/550 Matter 260/300 Energy 80/100 System Corruption 0% Temperature Cool (9) Movement Flying (35) Location -8/Materials Parts ------- > --- POWER (1) -------- (None) > --- PROPULSION (4) --- Cesium-ion Thruster > --- UTILITY (4) ------ Signal Interpreter > --- WEAPON (2) ------- Axe > --- INVENTORY (5) ---- Subdweller Shrapnel Launcher Peak State ------------ > --- POWER ------------ Ion Engine > --- PROPULSION ------- Wheel Compact Wheel > --- UTILITY ---------- Sensor Array Signal Interpreter Improved Terrain Scanner Makeshift Hacking Suite > --- WEAPON ----------- Assault Rifle Grenade Launcher > --- INVENTORY -------- Structural Scanner Barrage Gun Subdweller Shrapnel Launcher Axe Shrapnel Trap [Rating: 15] Favorites ----------- Power Ion Engine Engine Ion Engine Power Core Light Nuclear Core Propulsion Wheel Treads Armored Treads Wheel Wheel Flight Unit Flight Unit Utility Signal Interpreter Device Structural Scanner Processor Signal Interpreter Hackware Makeshift Hacking Suite Protection Light Armor Plating Weapon Assault Rifle Energy Gun Heavy EM Shotgun Ballistic Gun Assault Rifle Launcher Grenade Launcher Slashing Weapon Axe Build | -11 -10 -10 -8 ------- Run | Yrd Mat Sub Mat Slots Evolved 4 | . . . 4 Power . | . . . . Propulsion 2 | . . . 2 Utility 2 | . . . 2 Weapon . | . . . . Parts Attached 44 | 4 12 5 23 Power 4 | 1 1 . 2 Engine 2 | 1 1 . . Core 2 | . . . 2 Reactor . | . . . . Propulsion 14 | 2 4 2 6 Treads 1 | . . . 1 Leg . | . . . . Wheel 8 | 2 2 2 2 Hover . | . . . . Flight 5 | . 2 . 3 Utility 11 | . 4 2 5 Device 8 | . 3 2 3 Storage . | . . . . Processor 1 | . 1 . . Hackware 1 | . . . 1 Protection 1 | . . . 1 Artifact . | . . . . Weapon 15 | 1 3 1 10 Energy Gun 1 | . . . 1 Energy Cannon . | . . . . Ballistic Gun 8 | 1 1 1 5 Ballistic Cannon . | . . . . Launcher 4 | . 2 . 2 Special Weapon . | . . . . Impact Weapon . | . . . . Slashing Weapon 2 | . . . 2 Piercing Weapon . | . . . . Special Melee Weapon . | . . . . Unidentified Prototypes 1 | . . . 1 Parts Lost 19 | . 4 . 15 Power 2 | . 1 . 1 Propulsion 7 | . 2 . 5 Utility 4 | . . . 4 Weapon 6 | . 1 . 5 Highest Loss Streak 6 | . 3 . 6 To Critical Strikes . | . . . . Average Slot Usage (%) 81 | . 89 99 56 Engine 9 | . 11 14 3 Wheel 20 | . 23 27 10 Flight 1 | . 2 . . Device 13 | . 14 14 11 Processor 10 | . 10 14 9 Ballistic Gun 16 | . 22 14 12 Launcher 6 | . 4 14 3 Naked Turns . | . . . . Heaviest Build 14 | 5 11 11 14 Greatest Support 30 | 26 26 30 30 Greatest Overweight (x) 1 | . . 1 1 Average Overweight (x) . | . . . . Largest Inventory Capacity 5 | 5 5 5 5 Average Capacity 5 | 5 5 5 5 Most Carried 5 | 3 5 5 5 Average Carried 3 | . 3 4 4 Final Capacity 5 | 5 5 5 5 Final Carried 5 | . 5 5 1 Class Distribution -------------------- 88% | Mutant 9% | Skirmisher Dominant Class ---------------- Mutant | -10/Materials Mutant | -10/Subcaves Mutant | -8/Materials Resources | -11 -10 -10 -8 ----------- Run | Yrd Mat Sub Mat Matter Collected 1386 | 153 558 87 588 Remotely . | . . . . Salvage Created 1454 | . 497 52 905 Parts 88 | . 33 8 47 Haulers Intercepted 4 | . 2 . 2 Recyclers Shooed 2 | . . . 2 Parts Field Recycled . | . . . . Retrieved Matter . | . . . . Parts Self-Destructed . | . . . . Prevented . | . . . . Kills | -11 -10 -10 -8 ------- Run | Yrd Mat Sub Mat Combat Hostiles Destroyed 38 | . 13 2 23 Melee 3 | . . . 3 Guns 20 | . 10 . 10 AOE 15 | . 3 2 10 Classes Destroyed 9 | . 6 1 2 Worker 1 | . 1 . . Builder 2 | . . . 2 Tunneler 1 | . 1 . . Hauler 4 | . 2 . 2 Watcher 4 | . 2 . 2 Swarmer 13 | . 6 . 7 Grunt 19 | . 7 . 12 Sentry 4 | . . . 4 Subdweller 2 | . . 2 . Best Kill Streak 9 | . 3 2 9 Combat Bots Only 9 | . 3 2 9 Max Kills in Single Turn 4 | . 2 2 4 Gunslinging 1 | . . . 1 Exploded 4 | . 2 2 4 Melee 1 | . . . 1 Uniques/NPCs Destroyed . | . . . . Combat | -11 -10 -10 -8 -------- Run | Yrd Mat Sub Mat Hostile Shots Fired 214 | . 62 . 152 Missed 58 | . 23 . 35 Damage Taken 2137 | . 373 22 1742 Core 692 | . 127 . 565 Absorbed by Shields . | . . . . Core Remaining (%) 74 | 100 . 49 . Volleys Fired 169 | . 95 5 69 Largest 2 | . 2 1 2 Hottest 78 | . 50 30 78 Shots Fired 230 | . 125 5 100 Gun 208 | . 120 . 88 Cannon . | . . . . Launcher 22 | . 5 5 12 Special . | . . . . Kinetic 204 | . 120 . 84 Thermal . | . . . . Explosive 22 | . 5 5 12 Electromagnetic 4 | . . . 4 Robot Hit Streak 22 | . 6 . 22 Robot Miss Streak 7 | . 7 . 3 Penetration Max . | . . . . Secondary Targets 1 | . . . 1 Max Gunslinging Chain 1 | . . . 1 Shots Hit Robots 139 | . 63 . 76 Core Hits 86 | . 29 2 55 Critical Kills . | . . . . Critical Parts Destroyed 2 | . . . 2 Critical Strikes 9 | . . . 9 Destroy 2 | . . . 2 Sever 7 | . . . 7 Melee Attacks 17 | . . . 17 Impact . | . . . . Slashing 17 | . . . 17 Piercing . | . . . . Sneak Attacks . | . . . . Combat Hostiles . | . . . . Follow-up Attacks . | . . . . Damage Inflicted 3561 | . 948 71 2542 Guns 1869 | . 750 . 1119 Cannons . | . . . . Explosions 1202 | . 194 71 937 Melee 478 | . . . 478 Ramming 12 | . 4 . 8 Kinetic 1791 | . 750 . 1041 Thermal . | . . . . Explosive 1202 | . 194 71 937 Electromagnetic 78 | . . . 78 Impact . | . . . . Slashing 478 | . . . 478 Piercing . | . . . . Highest Corruption 3 | . 3 3 . Average Corruption 3 | . 3 3 . Corruption Purged . | . . . . Corruption Blocked . | . . . . Effects 18 | . 7 11 . Message Errors 3 | . 3 . . Matter Fused 4 | . . 4 . Heat Flow Errors 3 | . 1 2 . Energy Discharges 5 | . 2 3 . Data Loss (minor) 2 | . 1 1 . Data Loss (major) 1 | . . 1 . Overload Shots . | . . . . Overflow Damage 21 | . 4 . 17 Projectiles . | . . . . Explosions 21 | . 4 . 17 Melee . | . . . . Knockbacks . | . . . . Impact . | . . . . Kinetic . | . . . . Secondary . | . . . . Self-Inflicted Damage 47 | . 2 26 19 Shots 5 | . . 4 1 Rammed 3 | . 1 . 2 Targets Rammed 3 | . 1 . 2 Kicked . | . . . . Crushed . | . . . . Highest Temperature 255 | . 243 255 62 Average Temperature 66 | . 100 112 20 Received Heat Transfer 1092 | . 111 . 981 Siege Activations . | . . . . Robots Corrupted . | . . . . Combat Hostiles . | . . . . Parts Fried . | . . . . Impact Corruptions . | . . . . Robots Melted . | . . . . Combat Hostiles . | . . . . Parts Melted 1 | . . . 1 Heat Transferred . | . . . . Parts Sabotaged . | . . . . Parts Stolen . | . . . . Parts Stripped . | . . . . Power Chain Reactions . | . . . . Alert | -11 -10 -10 -8 ------- Run | Yrd Mat Sub Mat Peak Influence 496 | . 292 . 496 Initial . | . . . . Average 187 | . 85 . 327 Maximum Alert Level 2 | . 1 . 2 Low Security (%) 53 | 100 87 . 7 Level 1 32 | . 12 . 60 Level 2 13 | . . . 32 Level 3 . | . . . . Level 4 . | . . . . Level 5 . | . . . . High Security . | . . . . Max Security . | . . . . Squads Dispatched 7 | . 2 . 5 Investigation 5 | . 1 . 4 Extermination . | . . . . Reinforcement 2 | . 1 . 1 Assault . | . . . . Garrison . | . . . . Intercept . | . . . . Searches Triggered . | . . . . Construction Impeded . | . . . . Haulers Reinforced . | . . . . Active Scanning Responses . | . . . . Cargo Convoy Interrupts . | . . . . Stealth | -11 -10 -10 -8 --------- Run | Yrd Mat Sub Mat Distress Signals 1 | . . . 1 Communications Jammed . | . . . . Distress Signals . | . . . . Times Spotted 50 | . 18 2 30 Peak Tracking Total 7 | . 3 2 7 Tactical Retreats 1 | . . . 1 Traps | -11 -10 -10 -8 ------- Run | Yrd Mat Sub Mat Traps Triggered 4 | . 2 . 2 Indirectly . | . . . . Trap Hack Attempts . | . . . . Triggered . | . . . . Disarmed . | . . . . Reprogrammed 3 | . 3 . . Reused 1 | . . . 1 Traps Extracted . | . . . . Installed 1 | . . . 1 Triggered 1 | . . . 1 Most Traps Carried 1 | . . 1 1 Machines | -11 -10 -10 -8 ---------- Run | Yrd Mat Sub Mat Machines Disabled 4 | . 1 . 3 Max in Single Turn 2 | . 1 . 2 Machines Repaired . | . . . . Machines Dismantled . | . . . . Machines Sabotaged . | . . . . Overloaded Fab Kills . | . . . . Hacking | -11 -10 -10 -8 --------- Run | Yrd Mat Sub Mat Machines Accessed 9 | . 6 . 3 Terminals 8 | . 6 . 2 Fabricators . | . . . . Repair Stations . | . . . . Recycling Units 1 | . . . 1 Scanalyzers . | . . . . Garrison Access . | . . . . Total Hacks 30 | . 20 . 10 Successful 12 | . 7 . 5 Failed 18 | . 13 . 5 Catastrophic 6 | . 4 . 2 Database Lockouts . | . . . . Manual 23 | . 16 . 7 Terminals 26 | . 20 . 6 Fabricators . | . . . . Repair Stations . | . . . . Recycling Units 4 | . . . 4 Scanalyzers . | . . . . Garrison Access . | . . . . Terminal Hacks 5 | . 4 . 1 Branch Access Points 1 | . 1 . . Unreport Threat 1 | . 1 . . Reprogram Traps 2 | . 1 . 1 Zone Layout 1 | . 1 . . Fabricator Hacks . | . . . . Repair Station Hacks . | . . . . Recycling Unit Hacks 2 | . . . 2 Report Inventory 1 | . . . 1 Retrieve Matter 1 | . . . 1 Scanalyzer . | . . . . Garrison Access Hacks . | . . . . Unauthorized Hacks 5 | . 3 . 2 Terminals 4 | . 3 . 1 Botnet 4 | . 3 . 1 Fabricators . | . . . . Repair Stations . | . . . . Recycling Units 1 | . . . 1 Reject 1 | . . . 1 Scanalyzers . | . . . . Garrison Access . | . . . . Data Cores Recovered . | . . . . Used . | . . . . Hacking Detections 9 | . 6 . 3 Full Trace Events 5 | . 2 . 3 Feedback Events . | . . . . Feedback Blocked . | . . . . Robot Schematics Acquired . | . . . . Robots Built . | . . . . Authchips . | . . . . Time . | . . . . Total Robot Build Rating . | . . . . Part Schematics Acquired . | . . . . Parts Built . | . . . . Authchips . | . . . . Time . | . . . . Total Part Build Rating . | . . . . Parts Repaired . | . . . . Time . | . . . . Parts Recycled . | . . . . Recycled Matter . | . . . . Retrieved Matter 80 | . . . 80 Retrieved Components . | . . . . Parts Scanalyzed . | . . . . Part Schematics Acquired . | . . . . Parts Damaged . | . . . . Bothacking | -11 -10 -10 -8 ------------ Run | Yrd Mat Sub Mat Used RIF Installer . | . . . . Robots Hacked . | . . . . Non-combat . | . . . . Combat . | . . . . Robot Hacks Applied . | . . . . Relay Couplers Released . | . . . . Fabnet Peak Effective % . | . . . . Robots Rewired . | . . . . Allies Hacked . | . . . . Hacks Repelled . | . . . . Allies | -11 -10 -10 -8 -------- Run | Yrd Mat Sub Mat Total Allies . | . . . . Largest Group . | . . . . Highest-Rated Group . | . . . . Highest-Rated Ally . | . . . . Total Orders . | . . . . Ally Attacks . | . . . . Total Damage . | . . . . Kills . | . . . . Allies Corrupted . | . . . . Allies Melted . | . . . . Intel | -11 -10 -10 -8 ------- Run | Yrd Mat Sub Mat Robot Analysis Total . | . . . . Derelict Logs Recovered . | . . . . Drone Launches . | . . . . Drone Recoveries . | . . . . Exploration | -11 -10 -10 -8 ------------- Run | Yrd Mat Sub Mat Turns Passed 2704 | 40 1094 716 854 Spaces Moved 2192 | 40 1047 678 427 Core 179 | 8 83 . 88 Treads 90 | . . . 90 Legs . | . . . . Wheels 1724 | 32 792 678 222 Hover . | . . . . Flight 199 | . 172 . 27 Fastest Speed 32 | 50 37 90 32 Average Speed 87 | 82 78 93 100 Slowest Speed 170 | 90 90 95 170 Overloaded Moves . | . . . . Propulsion Burnouts . | . . . . Robots Hopped . | . . . . Cave-ins Triggered . | . . . . Exploration Rate (%) 41 | 3 98 32 32 Regions Visited 3 Branch Regions 1 Pre-discovered Areas . | . . . . Known Exits Taken 2 | . 1 1 . Unknown Exits Taken 1 | 1 . . . Scrap Searched . | . . . . Spaces Dug 11 | . 7 4 . Terrain Destroyed 114 | . 31 28 55 Melee . | . . . . Projectile . | . . . . AOE 114 | . 31 28 55 Terrain Rammed . | . . . . Walls Destroyed . | . . . . Machines Disabled . | . . . . Actions | -11 -10 -10 -8 --------- Run | Yrd Mat Sub Mat Total 2727 | 47 1195 759 726 Wait 249 | . 27 58 164 Move 2189 | 39 1046 677 427 Hop . | . . . . Pick Up 41 | 4 13 7 17 Fast Attach . | . . . . Attach 27 | 4 7 1 15 Detach . | . . . . Swap 17 | . 5 4 8 Drop 14 | . 1 7 6 Fire 169 | . 95 5 69 Melee 17 | . . . 17 Ram 3 | . 1 . 2 Kick . | . . . . Crush . | . . . . Escape Stasis . | . . . . Rewire . | . . . . Trap 1 | . . . 1 Miscellaneous . | . . . . Route ------- -11/Scrapyard -10/Materials (discovered 5 exits: *Mat x3 / *Min / *Sub) -10/Subcaves -8/Materials History --------- Turn | Location | Event 24 | -11/Scrapyard | Discovered new exit (range 14) 41 | -11/Scrapyard | Entered Materials 125 | -10/Materials | Discovered new exit (range 16) 309 | -10/Materials | Identified exit to Mines 313 | -10/Materials | Discovered new exit (range 15) 327 | -10/Materials | Build established: Mutant 442 | -10/Materials | Identified exit to Materials 459 | -10/Materials | Lost 3 parts (2n1w) 507 | -10/Materials | Core integrity fell below 50% 920 | -10/Materials | Discovered new exit (range 7) 1046 | -10/Materials | Discovered exit to Materials (range 16) 1134 | -10/Materials | Identified exit to Subcaves 1135 | -10/Materials | Entered Subcaves 1219 | -10/Subcaves | Shifting Twisted Machinery released Barrage Gun 1265 | -10/Subcaves | A swath of the cavern ceiling suddenly collapsed 1340 | -10/Subcaves | Shifting Twisted Machinery released Mak. Hacking Suite 1435 | -10/Subcaves | Shifting Twisted Machinery released Sub. Shrapnel Launcher 1579 | -10/Subcaves | A swath of the cavern ceiling suddenly collapsed 1651 | -10/Subcaves | Shifting Twisted Machinery released Shrapnel Trap 1843 | -10/Subcaves | Discovered new exit (range 11) 1850 | -10/Subcaves | Identified exit to Materials 1851 | -10/Subcaves | Entered Materials 1851 | -8/Materials | Evolved 4 slots: Propulsion x2, Utility x2 1938 | -8/Materials | Destroyed 9 combat bots 2361 | -8/Materials | Core integrity fell below 50% 2405 | -8/Materials | Lost 6 parts (2n2u2w) 2474 | -8/Materials | Core integrity fell below 20% 2705 | -8/Materials | Destroyed by G-47 Trooper with Particle Gun Last Messages --------------- Critical hit (Burn: +37). U-05 Engineer builds a Wall. K-01 Serf collects debris. U-05 Engineer lays Concrete. K-01 Serf collects debris. U-05 Engineer lays Concrete. Grenade Launcher destroyed. U-05 Engineer builds a Wall. Acquired 30 matter. U-05 Engineer lays Concrete. R-06 Scavenger collects Lgt. Nuclear Core. U-05 Engineer builds a Wall. U-05 Engineer lays Concrete. Cesium-ion Thruster destroyed. Critical hit (Burn: +37). U-05 Engineer lays Concrete. U-05 Engineer builds a Wall. U-05 Engineer lays Concrete. Hvy. Assault Rifle destroyed. U-05 Engineer lays Concrete. Map ----- +----------------------------------------------------+ | ! ############# = ### ##??????????????????????? | | * ###????##???# ##### ##??????????????????????? | | ]##########??# # ######## ##### ????????? | | ############?# # ??????? | | ############?# ??????? | | # ##?## # ??????? | | ## ##??#### ! ##############?????????? | | # ##?????## ##??????????????????????? | | # ###?#?### #??????????? ???????????? | | + ##??#???# #?#?????????????????????? | | # ###????## #???????????????????????? | | # ###??#??# #???????????????????????? | | ## """ +##?????# #???????????????????????? | | ## ]###????## ##???????????###########? | | #############?????# #?????#??????# / #? | | ############?????## #????????##### #? | | #####?????#?#???#?# ##?????#?# + / / #? | | #########?#???????# #????????# # #? | | ########????#???#?# #????????# # #? | | # ! ############# #??#???#?# # #? | | # " ### ## #?????#??# # #? | | # T "## ## k ####?##### # #? | | + " T## ## ##### #####+###### | | # ! "## // # | | # ### // + ru g u | | # ### // %#% uu@ % % % % | | ######### #+##;;;;##### ##+########### | | ######### # ;#????# #????# | | ##??#?#?# # =!= ###???# [ #????# | | ##??????# ######## ==""#?????# / #????# | | ##??????###??????#! =%Y"#?????# #????# | | ########?????????# ""#?????# " "" #????# | | ########?????????# #?????# "R"" #????# | | # ###????????########???#?# ! """ #????# | | # ##??????????????????????# #????#] | | # ##?????????????#?#?#????######### #????# | | + ##??????????????#???????????????###????## | | # ##?????#????????????????????????????????? | | # ##?????????????????#????????????????????? | | # ##??????????????????????????????????????? | | ###########??????????????????????????????????????? | | ###########??????????????????????????????????????? | | ????#????????????????????????????????????????????? | | ?????????????????????????????????????????????????? | | ?????????????????????????????????????????????????? | | ?????????????????????????????????????????????????? | | ?????????????????????????????????????????????????? | | ???#?????????????????????????????????????????????? | | ?????????????????????????????????????????????????? | | ?????????????????????????????????????????????????? | +----------------------------------------------------+ Best States ------------- Heat Dissipation 31 Energy Generation 14 Energy Capacity 250 Matter Stores 300 Matter Capacity 300 Sight Range 16 Robot Scan Range 14 Terrain Scan Range 16 Terrain Scan Density 10 Armor Coverage 150 Evasion (%) 62 Recoil Reduction 1 Offensive Hacking 11 Item Schematics ----------------- None Robot Schematics ------------------ None Fabricated ------------ Nothing Alien Tech Used ----------------- None Achievements -------------- None Challenges ------------ None Game ------ Seed IntegrityNavigationExpander Manual? 0 Play Time 00:31:01 Cumulative 17.6 hours Start 2024.04.11 @ 08:48:00 End 2024.04.11 @ 09:16:15 Sessions 1 Manual Loads 0 Difficulty Rogue Special Mode None Game No. 24 Rogue 22 Adventurer 2 Explorer 0 Win Type - Total 0 Types 0/0/0/0/0/0/0/0/0 Lore% 20 Gallery% 24 Achievement% 21 Wizard Run 0 Options --------- Layout 0 ASCII 0 Keyboard 0 Movement Mouse Keybinds 0 Fullscreen 2 Font 18/Smallcaps Map View 38x25 Zoom Use 86% Tactical HUD 0 Map Filters NONE Filters NONE Steam 1 RUN: 3f40b240-dab8-4b03-b4eb-3d7e2720a903